[Event "WYCC 2018 O18"]
[Site "Halkidiki"]
[Date "2018.10.23"]
[Round "5"]
[White "Ioannidis, Evgenios"]
[Black "Beukema, Jasper"]
[Result "0-1"]
[ECO "A80"]
[WhiteElo "2407"]
[BlackElo "2256"]
[Annotator "ChessBase"]
[PlyCount "65"]
[EventDate "2018.10.20"]
[EventType "swiss"]
[EventCountry "GRE"]
[SourceTitle "playchess.com"]
[Source "ChessBase"]
[SourceQuality "1"]
[TimeControl "40/5400+30:1800+30"]

1. d4 {[%emt 0:00:19]} f5 {[%emt 0:00:00]} 2. Nc3 {[%emt 0:00:30]} d5 {[%emt 0:02:46]} 3. Bf4 {[%emt 0:00:20]} Nf6 {[%emt 0:00:44]} 4. Nb5 {[%emt 0:00:24]} Na6 {[%emt 0:00:34]} 5. e3 {[%emt 0:00:30]} e6 {[%emt 0:03:49]} 6. Nf3 {[%emt 0:01:45]} c6 {[%emt 0:01:18]} 7. Nc3 {[%emt 0:00:05]} b6 {[%emt 0:02:10]} 8. Ne5 {[%emt 0:02:52]} Nb8 {[%emt 0:00:07]} 9. Bd3 {[%emt 0:04:17]} Be7 {[%emt 0:01:01]} 10. g4 {[%emt 0:03:43]} fxg4 {[%emt 0:08:45]} 11. Nxg4 {[%emt 0:00:47]} Nbd7 {[%emt 0:09:56]} 12. Rg1 {[%emt 0:05:40]} g6 {[%emt 0:08:28]} 13. Ne5 Nxe5 {[%emt 0:02:22]} 14. Bxe5 {[%emt 0:22:36]} Rf8 {[%emt 0:02:51]} 15. Qd2 {[%emt 0:07:50]} a6 {[%emt 0:02:15]} 16. O-O-O {[%emt 0:07:17]} c5 {[%emt 0:02:50]} 17. e4 {[%emt 0:03:02]} c4 {[%emt 0:04:49]} 18. Bf1 {[%emt 0:00:45]} b5 {[%emt 0:00:19]} 19. Bxf6 {[%emt 0:10:40]} Bxf6 {[%emt 0:07:04]} 20. exd5 {[%emt 0:00:11]} exd5 {[%emt 0:00:49]} 21. Re1+ {[%emt 0:05:11]} Kf7 {[%emt 0:01:54]} 22. Nxd5 {[%emt 0:00:04]} Kg7 {[%emt 0:12:46]} 23. Bg2 {[%emt 0:02:13]} Bh4 {[%emt 0:02:53]} 24. Ne7 {[%emt 0:10:30]} Ra7 {[%emt 0:00:50]} 25. Nc6 {[%emt 0:00:11]} Qf6 {[%emt 0:01:20]} 26. Nxa7 {[%emt 0:00:24]} Bg5 {[%emt 0:01:26]} 27. Re3 {[%emt 0:00:18]} Qxf2 {[%emt 0:00:43]} 28. Rge1 {[%emt 0:00:23]} Bg4 {[%emt 0:03:22]} 29. h3 {[%emt 0:06:19]} Bh5 {[%emt 0:01:31]} 30. Be4 {[%emt 0:01:14]} b4 {[%emt 0:00:48]} 31. Nc6 {[%emt 0:04:25]} Bxe3 {[%emt 0:01:52]} 32. Rxe3 {[%emt 0:00:44]} Qxe3 {[%emt 0:00:13]} 33. Bg2 0-1

[Event "WYCC 2018 O18"]
[Site "Halkidiki"]
[Date "2018.10.23"]
[Round "5"]
[White "Miciano, John Marvin"]
[Black "Liska, Jiri"]
[Result "1-0"]
[ECO "A45"]
[WhiteElo "2361"]
[BlackElo "2245"]
[Annotator "NA"]
[PlyCount "97"]
[EventDate "2018.10.20"]
[EventType "swiss"]
[EventCountry "GRE"]
[SourceTitle "playchess.com"]
[Source "ChessBase"]
[SourceQuality "1"]
[TimeControl "40/5400+30:1800+30"]

1. d4 {[%emt 0:00:00] Roiz,M} Nf6 {[%emt 0:00:00]} 2. g3 {[%emt 0:00:00]} g6 {[%emt 0:00:41]} 3. Bg2 {[%emt 0:00:03]} d5 {[%emt 0:00:42]} 4. c4 {[%emt 0:00:37]} c6 {[%emt 0:00:56]} 5. Qa4 {[%emt 0:00:17] D71: Fianchetto Grünfeld: 3 g3 d5 sidelines and 5 cxd5 (without Nf3)} Nfd7 {[%emt 0:09:11]} (5... Bg7 6. cxd5 O-O 7. e4 cxd5 8. e5 Nfd7 9. Nc3 Nb6 10. Qd1 Nc6 11. Nge2 Bg4 12. h3 Bxe2 13. Nxe2 {0-1 (60) Mamedyarov,S (2801)-Vachier Lagrave,M (2779) Saint Louis 2018}) 6. cxd5 {[%emt 0:00:27]} Nb6 {[%emt 0:00:11]} 7. Qd1 {[%emt 0:00:27]} cxd5 {[%emt 0:00:20]} 8. e3 {[%emt 0:00:41]} Bg7 {[%emt 0:00:36]} 9. Ne2 {[%emt 0:00:09]} O-O {[%emt 0:04:05]} 10. Nbc3 {[%emt 0:00:37]} Nc6 {[%emt 0:01:18]} 11. O-O {[%emt 0:01:06]} e6 {[%emt 0:03:04]} 12. b3 {[%emt 0:01:02]} Bd7 $146 {[%emt 0:17:01]} ({Predecessor:} 12... a5) 13. a4 {[%emt 0:09:19]} Re8 {[%emt 0:07:56]} 14. Ba3 {[%emt 0:06:15]} a6 {[%emt 0:06:23]} 15. Rc1 {[%emt 0:05:11]} f5 {[%emt 0:08:00]} 16. Nf4 {[%emt 0:06:51]} Qf6 {[%emt 0:04:33]} 17. Bc5 {[%emt 0:03:50]} Nc8 {[%emt 0:01:51]} 18. Nd3 {[%emt 0:11:39]} b6 {[%emt 0:03:27]} 19. Ba3 {[%emt 0:00:27]} Bf8 {[%emt 0:01:11]} 20. Bxf8 {[%emt 0:00:10]} Kxf8 {[%emt 0:00:15]} 21. f4 {[%emt 0:03:05]} Qe7 {[%emt 0:03:56]} 22. Ne5 {[%emt 0:04:37]} Nxe5 {[%emt 0:02:17]} 23. fxe5 {[%emt 0:01:13]} Qg5 {[%emt 0:02:52]} 24. e4 {[%emt 0:03:01]} Ne7 {[%emt 0:07:19]} 25. exd5 {[%emt 0:03:52]} exd5 {[%emt 0:01:26]} 26. Qd3 {[%emt 0:07:24]} Rac8 {[%emt 0:07:05]} 27. Ne2 {[%emt 0:00:19]} Rxc1 {[%emt 0:02:40]} 28. Rxc1 {[%emt 0:00:10]} Rc8 {[%emt 0:01:00]} 29. Rxc8+ {[%emt 0:00:18]} Bxc8 {[%emt 0:00:04]} 30. Nf4 {[%emt 0:00:12]} Ke8 {[%emt 0:01:42]} 31. Qc3 {[%emt 0:00:43]} Bb7 {[%emt 0:01:58]} 32. Kf2 {[%emt 0:02:31]} Qh6 {[%emt 0:00:32]} 33. h4 {[%emt 0:02:50]} g5 {[%emt 0:00:31]} 34. hxg5 {[%emt 0:00:07]} Qc6 {[%emt 0:00:32]} 35. Qxc6+ {[%emt 0:00:43]} Bxc6 {[%emt 0:00:01]} 36. Bf1 {[%emt 0:01:24]} a5 {[%emt 0:01:17]} 37. Bd3 {[%emt 0:00:33]} Kf7 {[%emt 0:00:36]} 38. e6+ {[%emt 0:00:19]} Kg7 {[%emt 0:00:20]} 39. g4 {[%emt 0:01:01]} h6 {[%emt 0:01:07]} 40. gxf5 {[%emt 0:00:00]} hxg5 {[%emt 0:00:00]} 41. Nh5+ {[%emt 0:01:44]} Kf8 {[%emt 0:01:43]} 42. Kf3 {[%emt 0:00:27]} b5 {[%emt 0:02:08]} 43. Kg4 {[%emt 0:02:34]} bxa4 {[%emt 0:01:57]} 44. bxa4 {[%emt 0:00:07]} Bxa4 {[%emt 0:00:14]} 45. Kxg5 {[%emt 0:01:25]} Nc6 {[%emt 0:08:20]} 46. f6 {[%emt 0:02:02]} Nxd4 {[%emt 0:00:33]} 47. e7+ {[%emt 0:00:41]} Kg8 {[%emt 0:01:24]} 48. Bg6 {[%emt 0:00:40]} Ne6+ {[%emt 0:01:58]} 49. Kh6 {[%emt 0:00:36]} 1-0

[Event "WYCC 2018 O18"]
[Site "Halkidiki"]
[Date "2018.10.23"]
[Round "5"]
[White "Mitrabha, Guha"]
[Black "Kadianis, Georgios"]
[Result "1-0"]
[ECO "D70"]
[WhiteElo "2352"]
[BlackElo "1928"]
[Annotator "NA"]
[PlyCount "89"]
[EventDate "2018.10.20"]
[EventType "swiss"]
[EventCountry "GRE"]
[SourceTitle "playchess.com"]
[Source "ChessBase"]
[SourceQuality "1"]
[TimeControl "40/5400+30:1800+30"]

1. d4 {[%emt 0:02:49]} d5 {[%emt 0:00:00]} 2. Nf3 {[%emt 0:00:07]} Nf6 {[%emt 0:00:00]} 3. c4 {[%emt 0:00:04]} c6 {[%emt 0:00:00]} 4. Nbd2 {[%emt 0:00:06]} e6 {[%emt 0:05:24]} 5. g3 {[%emt 0:00:10]} dxc4 {[%emt 0:01:44] D30: Damengambit (ohne Sc3)} (5... Be7 6. Bg2 O-O 7. O-O b6 8. b3 Bb7 9. Bb2 Nbd7 10. Rc1 Rc8 11. e3 dxc4 12. Nxc4 c5 13. Qe2 cxd4 14. Nxd4 Bxg2 15. Kxg2 a6 16. Nf3 b5 17. Nce5 Qb6 18. Nxd7 {½-½ (18) Dubov,D (2691)-Korobov,A (2664) Abu Dhabi 2018}) 6. Nxc4 {[%emt 0:00:08]} b5 {[%emt 0:03:20]} 7. Nce5 {[%emt 0:00:47]} Bb7 {[%emt 0:03:40]} 8. Bg2 {[%emt 0:04:03]} Be7 {[%emt 0:03:38]} 9. O-O {[%emt 0:00:43]} O-O {[%emt 0:00:06]} 10. Qb3 {[%emt 0:01:18]} Nbd7 {[%emt 0:03:03]} 11. Rd1 $146 {[%emt 0:00:21]} ({Vorgänger:} 11. a4 a6 12. Bf4 Nd5 13. Rfc1 Rc8 14. Nxd7 Qxd7 15. Ne5 Qd8 {1-0 (31) Postnikov,A (2024)-Survilo,V (1937) Berdsk 2010}) 11... Qc7 {[%emt 0:06:36]} 12. Bf4 {[%emt 0:02:21]} Nxe5 {[%emt 0:05:35]} 13. Nxe5 {[%emt 0:00:18]} Qb6 {[%emt 0:05:32]} 14. Be3 {[%emt 0:01:11]} Qa6 {[%emt 0:08:25]} 15. a4 {[%emt 0:02:24]} b4 {[%emt 0:08:43]} 16. Nd3 {[%emt 0:00:59]} Nd5 {[%emt 0:04:03]} 17. Bd2 {[%emt 0:00:06]} Qb6 {[%emt 0:02:11]} 18. e4 {[%emt 0:00:51]} Nc7 {[%emt 0:00:23]} 19. Nc5 {[%emt 0:00:25]} Bc8 {[%emt 0:12:15]} 20. a5 {[%emt 0:03:54]} Qb8 {[%emt 0:00:22]} 21. Bf4 {[%emt 0:00:30]} Rd8 {[%emt 0:07:22]} 22. Ra4 {[%emt 0:01:46]} Bxc5 {[%emt 0:02:58]} 23. dxc5 {[%emt 0:00:03]} Rxd1+ {[%emt 0:00:39]} 24. Qxd1 {[%emt 0:00:02]} Ba6 {[%emt 0:01:06]} 25. Qd7 {[%emt 0:04:45]} Qb5 {[%emt 0:09:40]} 26. Ra1 {[%emt 0:00:05]} e5 {[%emt 0:00:58]} 27. Bf1 {[%emt 0:02:06]} Qb7 {[%emt 0:02:38]} 28. Bxe5 {[%emt 0:00:19]} Ne6 {[%emt 0:00:18]} 29. Qxb7 {[%emt 0:00:23]} Bxb7 {[%emt 0:00:01]} 30. a6 {[%emt 0:00:08]} Bc8 {[%emt 0:00:11]} 31. Rd1 {[%emt 0:00:02]} f6 {[%emt 0:01:34]} 32. Bd6 {[%emt 0:00:18]} Kf7 {[%emt 0:00:51]} 33. Bc4 {[%emt 0:00:05]} Ke8 {[%emt 0:00:42]} 34. f4 {[%emt 0:00:06]} Bd7 {[%emt 0:01:00]} 35. h4 {[%emt 0:00:09]} Rd8 {[%emt 0:01:36]} 36. f5 {[%emt 0:00:20]} Nf8 {[%emt 0:00:29]} 37. Bxf8 {[%emt 0:00:16]} Kxf8 {[%emt 0:00:02]} 38. Be6 {[%emt 0:00:06]} Ke7 {[%emt 0:00:05]} 39. Rxd7+ {[%emt 0:00:04]} Rxd7 {[%emt 0:00:05]} 40. Bxd7 {[%emt 0:00:00]} Kxd7 {[%emt 0:00:00]} 41. Kf2 {[%emt 0:00:09]} g6 $18 {[%emt 0:01:11]} 42. g4 {[%emt 0:00:05]} Ke7 {[%emt 0:00:37]} 43. h5 {[%emt 0:00:22]} gxh5 {[%emt 0:03:29]} 44. gxh5 {[%emt 0:02:24]} Kf7 {[%emt 0:00:55]} 45. h6 {[%emt 0:00:02]} 1-0

[Event "WYCC 2018 O18"]
[Site "Halkidiki"]
[Date "2018.10.23"]
[Round "5"]
[White "Ranaldi, Lucas"]
[Black "Lazov, Toni"]
[Result "0-1"]
[ECO "E91"]
[WhiteElo "2335"]
[BlackElo "2292"]
[Annotator "NA"]
[PlyCount "54"]
[EventDate "2018.10.20"]
[EventType "swiss"]
[EventCountry "GRE"]
[SourceTitle "playchess.com"]
[Source "ChessBase"]
[SourceQuality "1"]
[TimeControl "40/5400+30:1800+30"]

1. Nf3 {[%emt 0:00:00]} Nf6 {[%emt 0:00:00]} 2. c4 {[%emt 0:00:00]} g6 {[%emt 0:00:00]} 3. Nc3 {[%emt 0:00:00]} Bg7 {[%emt 0:00:00]} 4. e4 {[%emt 0:00:00]} d6 {[%emt 0:00:24]} 5. d4 {[%emt 0:00:00]} O-O {[%emt 0:00:05]} 6. Be2 {[%emt 0:00:00]} Na6 {[%emt 0:01:35]} 7. O-O {[%emt 0:00:00]} e5 {[%emt 0:00:08]} 8. Be3 {[%emt 0:00:04]} Ng4 {[%emt 0:01:57]} 9. Bg5 {[%emt 0:00:05]} Qe8 {[%emt 0:01:25]} 10. Re1 {[%emt 0:00:42]} f6 {[%emt 0:08:40]} 11. Bh4 {[%emt 0:01:29]} h5 {[%emt 0:01:04]} 12. h3 {[%emt 0:04:10]} Nh6 $16 {[%emt 0:02:34] LiveBook: 3 Games} 13. d5 {[%emt 0:35:06]} g5 {[%emt 0:15:18]} 14. Bg3 {[%emt 0:00:53]} Qg6 {[%emt 0:00:06]} 15. Nd2 {[%emt 0:11:16]} g4 {[%emt 0:06:39]} 16. hxg4 {[%emt 0:05:58]} hxg4 {[%emt 0:04:47]} 17. Nf1 {[%emt 0:04:01]} Nc5 {[%emt 0:12:13]} 18. Bd3 {[%emt 0:18:23]} Nxd3 {[%emt 0:05:57]} 19. Qxd3 {[%emt 0:00:02]} f5 {[%emt 0:00:14]} 20. exf5 {[%emt 0:00:21]} Nxf5 {[%emt 0:00:44]} 21. Ne3 {[%emt 0:00:55]} Qh5 {[%emt 0:06:05]} 22. Nxf5 {[%emt 0:01:29]} Bxf5 {[%emt 0:01:40]} 23. Ne4 {[%emt 0:00:13]} Rf7 {[%emt 0:04:55]} 24. Re2 {[%emt 0:02:21]} Raf8 {[%emt 0:05:46]} 25. Rf1 {[%emt 0:00:33]} Bh6 {[%emt 0:05:51]} 26. b3 {[%emt 0:10:56]} Bf4 {[%emt 0:02:37]} 27. Bxf4 {[%emt 0:00:50]} exf4 {[%emt 0:00:31]} 0-1

[Event "WYCC 2018 O18"]
[Site "Halkidiki"]
[Date "2018.10.23"]
[Round "5"]
[White "Pantzar, Milton"]
[Black "Tifferet, Shaked"]
[Result "1-0"]
[ECO "A18"]
[WhiteElo "2326"]
[BlackElo "2254"]
[Annotator "NA"]
[PlyCount "77"]
[EventDate "2018.10.20"]
[EventType "swiss"]
[EventCountry "GRE"]
[SourceTitle "playchess.com"]
[Source "ChessBase"]
[SourceQuality "1"]
[TimeControl "40/5400+30:1800+30"]

1. c4 {[%emt 0:00:00]} Nf6 {[%emt 0:00:00]} 2. Nc3 {[%emt 0:00:00]} e6 {[%emt 0:00:00]} 3. e4 {[%emt 0:00:29]} d5 {[%emt 0:00:05]} 4. e5 {[%emt 0:00:30]} d4 {[%emt 0:00:09]} 5. exf6 {[%emt 0:00:20]} dxc3 {[%emt 0:00:06]} 6. bxc3 {[%emt 0:00:20]} Qxf6 {[%emt 0:00:06]} 7. d4 {[%emt 0:00:19]} b6 {[%emt 0:00:17]} 8. Be2 {[%emt 0:01:14]} Bb7 {[%emt 0:00:09]} 9. Bf3 {[%emt 0:00:47]} Bxf3 {[%emt 0:00:13]} 10. Nxf3 {[%emt 0:00:06]} Bd6 {[%emt 0:01:54]} 11. Qa4+ {[%emt 0:00:40]} c6 {[%emt 0:00:38]} 12. O-O {[%emt 0:00:36]} O-O {[%emt 0:03:36] LiveBook: 13 Games} 13. Rb1 {[%emt 0:02:04]} Qf5 {[%emt 0:03:21]} 14. Rxb6 {[%emt 0:21:06]} axb6 {[%emt 0:00:23]} 15. Qxa8 {[%emt 0:00:05]} Qd3 {[%emt 0:00:13]} 16. Qa4 {[%emt 0:07:57]} Qxc3 $11 {[%emt 0:05:55]} 17. Be3 {[%emt 0:06:42]} Qa3 {[%emt 0:29:05]} 18. Qxa3 {[%emt 0:07:08]} Bxa3 {[%emt 0:00:25]} 19. Rb1 {[%emt 0:00:25]} b5 {[%emt 0:27:29]} 20. cxb5 {[%emt 0:08:36]} cxb5 {[%emt 0:00:06]} 21. Rxb5 {[%emt 0:00:11]} Rd8 {[%emt 0:03:45]} 22. Kf1 {[%emt 0:10:26]} Nc6 {[%emt 0:01:25]} 23. Ke2 {[%emt 0:02:51]} Ra8 {[%emt 0:02:47]} 24. Ne5 {[%emt 0:09:10]} Ne7 {[%emt 0:02:52]} 25. Bd2 {[%emt 0:06:51]} Nf5 {[%emt 0:03:02]} 26. Kd3 {[%emt 0:02:25]} Bd6 {[%emt 0:00:59]} 27. Ra5 {[%emt 0:02:06]} Rd8 {[%emt 0:00:11]} 28. Nc6 {[%emt 0:01:01]} Rc8 {[%emt 0:00:34]} 29. Ra6 {[%emt 0:00:20]} h5 {[%emt 0:00:58]} 30. g3 {[%emt 0:00:57]} Rc7 {[%emt 0:01:50]} 31. a4 {[%emt 0:02:30]} Rd7 {[%emt 0:00:23]} 32. a5 {[%emt 0:02:19]} Bc5 {[%emt 0:06:11]} 33. Ra8+ {[%emt 0:01:36]} Kh7 {[%emt 0:00:14]} 34. Rd8 {[%emt 0:00:38]} Rxd8 {[%emt 0:01:16]} 35. Nxd8 {[%emt 0:00:02]} Nxd4 {[%emt 0:01:04]} 36. Be3 {[%emt 0:03:06]} e5 {[%emt 0:00:21]} 37. Nxf7 {[%emt 0:00:38]} Nc6 {[%emt 0:05:56]} 38. Bxc5 {[%emt 0:00:28]} Kg6 {[%emt 0:00:05]} 39. a6 {[%emt 0:01:16]} 1-0

[Event "WYCC 2018 O18"]
[Site "Halkidiki"]
[Date "2018.10.23"]
[Round "5"]
[White "Banzea, Alexandru-Bogdan"]
[Black "Bratkovic, Jakob"]
[Result "1-0"]
[ECO "B47"]
[WhiteElo "2313"]
[BlackElo "2242"]
[Annotator "NA"]
[PlyCount "69"]
[EventDate "2018.10.20"]
[EventType "swiss"]
[EventCountry "GRE"]
[SourceTitle "playchess.com"]
[Source "ChessBase"]
[SourceQuality "1"]
[TimeControl "40/5400+30:1800+30"]

1. e4 {[%emt 0:00:00]} c5 {[%emt 0:01:50]} 2. Nf3 {[%emt 0:00:00]} e6 {[%emt 0:00:17]} 3. d4 {[%emt 0:00:06]} cxd4 {[%emt 0:00:07]} 4. Nxd4 {[%emt 0:00:08]} Nc6 {[%emt 0:00:07]} 5. Nc3 {[%emt 0:00:07]} Qc7 {[%emt 0:00:05]} 6. Qd3 {[%emt 0:00:08] B47: Sicilian: Taimanov: 5 Nc3 Qc7 6 f4, 6 g3 and 6 Be2} (6. Be3 a6 7. Qf3 Nf6 8. O-O-O Ne5 9. Qg3 b5 10. a3 Bb7 11. Bxb5 Rc8 12. Ba4 Nxe4 13. Nxe4 Bxe4 14. Bf4 Qc4 15. Bxe5 Qxa4 {1-0 (38) Vachier Lagrave,M (2789)-Anand,V (2776) Karlsruhe/Baden-Baden 2018}) 6... Nf6 {[%emt 0:00:47]} 7. Ndb5 {[%emt 0:00:10]} Qb8 {[%emt 0:00:06]} 8. f4 {[%emt 0:00:36]} a6 {[%emt 0:11:16]} 9. Nd4 {[%emt 0:01:05]} Nb4 $146 {[%emt 0:02:19]} ({Predecessor:} 9... d5 10. e5 Nd7 11. Be3 Bc5 12. O-O-O Qa7 13. Be2 b5 {1-0 (79) Motylev,A (2653)-Mirzoev,E (2424) Minsk 2015}) 10. Qg3 {[%emt 0:13:05]} d6 {[%emt 0:10:26]} 11. a3 {[%emt 0:07:03]} Nc6 {[%emt 0:04:18]} 12. Be3 {[%emt 0:04:30]} Nxd4 {[%emt 0:05:25]} 13. Bxd4 {[%emt 0:00:37]} Nh5 {[%emt 0:00:10]} 14. Qf3 {[%emt 0:02:14]} Nxf4 {[%emt 0:06:45]} 15. Qxf4 {[%emt 0:03:48]} e5 {[%emt 0:00:08]} 16. Qd2 {[%emt 0:02:52]} exd4 {[%emt 0:00:47]} 17. Nd5 {[%emt 0:00:30]} Be6 {[%emt 0:05:22]} 18. Qxd4 {[%emt 0:06:00]} Qd8 {[%emt 0:03:48]} 19. O-O-O {[%emt 0:04:18]} Rc8 {[%emt 0:09:05]} 20. h4 {[%emt 0:04:38]} Qa5 {[%emt 0:02:16]} 21. Kb1 {[%emt 0:08:55]} Qc5 {[%emt 0:02:41]} 22. Qd2 {[%emt 0:01:22]} Bxd5 {[%emt 0:03:45]} 23. exd5 {[%emt 0:00:07]} Be7 {[%emt 0:00:03]} 24. Re1 {[%emt 0:04:05]} Rc7 {[%emt 0:00:13]} 25. g4 {[%emt 0:00:42]} O-O {[%emt 0:01:17]} 26. g5 {[%emt 0:00:22]} b5 {[%emt 0:04:05]} 27. Rh3 {[%emt 0:06:03]} Rb8 $14 {[%emt 0:02:40]} 28. Rhe3 {[%emt 0:01:18]} Bf8 {[%emt 0:00:08]} 29. h5 {[%emt 0:01:06]} Rcc8 {[%emt 0:02:43]} 30. Bh3 {[%emt 0:00:57]} Rd8 {[%emt 0:01:04]} 31. g6 {[%emt 0:01:07]} fxg6 {[%emt 0:01:15]} 32. hxg6 {[%emt 0:00:24]} h6 {[%emt 0:00:09]} 33. Be6+ {[%emt 0:01:52]} Kh8 {[%emt 0:00:04]} 34. Rh3 {[%emt 0:00:13]} b4 {[%emt 0:03:10]} 35. Rf1 {[%emt 0:00:35]} 1-0

[Event "WYCC 2018 O18"]
[Site "Halkidiki"]
[Date "2018.10.23"]
[Round "5"]
[White "Carnicelli, Valerio"]
[Black "Lindbol, Aleksander"]
[Result "0-1"]
[ECO "B12"]
[WhiteElo "2299"]
[BlackElo "2166"]
[Annotator "NA"]
[PlyCount "48"]
[EventDate "2018.10.20"]
[EventType "swiss"]
[EventCountry "GRE"]
[SourceTitle "playchess.com"]
[Source "ChessBase"]
[SourceQuality "1"]
[TimeControl "40/5400+30:1800+30"]

1. e4 {[%emt 0:00:00]} c6 {[%emt 0:00:04]} 2. d4 {[%emt 0:00:00]} d5 {[%emt 0:00:09]} 3. e5 {[%emt 0:00:00]} Bf5 {[%emt 0:00:28]} 4. Nc3 {[%emt 0:00:00]} e6 {[%emt 0:00:40]} 5. g4 {[%emt 0:00:00]} Bg6 {[%emt 0:00:07]} 6. Nge2 {[%emt 0:00:02]} Ne7 {[%emt 0:00:09]} 7. Nf4 {[%emt 0:00:37]} c5 {[%emt 0:00:15]} 8. h4 {[%emt 0:08:17]} cxd4 {[%emt 0:01:26]} 9. Nb5 {[%emt 0:01:39]} Nec6 {[%emt 0:00:08]} 10. h5 {[%emt 0:03:51]} Be4 {[%emt 0:00:20]} 11. f3 {[%emt 0:02:12]} a6 {[%emt 0:00:11] B12: Caro-Kann: Advance Variation} (11... Bxf3 12. Qxf3 Nxe5 13. Qg3 Nbc6 14. Nd3 f6 15. Nf4 Kd7 16. g5 f5 17. c3 dxc3 18. bxc3 Qa5 19. Bd2 Qa4 20. Be2 Bc5 21. Rh4 Ng4 22. Nd3 Be7 23. Qc7+ Ke8 24. Qxb7 {1-0 (24) Anand,V (2790)-Karpov,A (2679) Monte Carlo 2001}) 12. fxe4 {[%emt 0:03:38]} dxe4 {[%emt 0:00:40]} 13. Nd6+ {[%emt 0:02:27]} Bxd6 {[%emt 0:00:10]} 14. exd6 {[%emt 0:00:04]} Qxd6 {[%emt 0:00:46]} 15. Bg2 $146 {[%emt 0:00:38]} ({Predecessor:} 15. h6 g6 16. g5 O-O 17. Bg2 Qe5 18. O-O e3 19. Qg4 {0-1 (34) Toma,K (2198)-Czarnota,D (2115) Bartkowa 2002}) 15... f5 {[%emt 0:05:53]} 16. Qe2 {[%emt 0:12:12]} Nd7 {[%emt 0:13:15]} 17. Nxe6 {[%emt 0:13:37]} Qxe6 {[%emt 0:04:36]} 18. gxf5 {[%emt 0:00:25]} Qxf5 {[%emt 0:07:10]} 19. Bxe4 {[%emt 0:00:22]} Qe5 {[%emt 0:01:23]} 20. Rf1 $11 {[%emt 0:04:13]} O-O-O {[%emt 0:11:08]} 21. Bf4 {[%emt 0:04:45]} Qa5+ {[%emt 0:06:00]} 22. Bd2 {[%emt 0:00:35]} Qa4 {[%emt 0:02:30]} 23. a3 {[%emt 0:13:23]} Rhe8 {[%emt 0:04:03]} 24. O-O-O {[%emt 0:07:03]} d3 {[%emt 0:01:46]} 0-1

[Event "WYCC 2018 O18"]
[Site "Halkidiki"]
[Date "2018.10.23"]
[Round "5"]
[White "Risting, Eivind Olav"]
[Black "Asllani, Muhamet"]
[Result "1-0"]
[ECO "E12"]
[WhiteElo "2299"]
[BlackElo "2148"]
[Annotator "NA"]
[PlyCount "101"]
[EventDate "2018.10.20"]
[EventType "swiss"]
[EventCountry "GRE"]
[SourceTitle "playchess.com"]
[Source "ChessBase"]
[SourceQuality "1"]
[TimeControl "40/5400+30:1800+30"]

1. d4 {[%emt 0:00:00]} Nf6 {[%emt 0:00:00]} 2. c4 {[%emt 0:00:00]} e6 {[%emt 0:00:00]} 3. Nf3 {[%emt 0:00:01]} b6 {[%emt 0:00:06]} 4. a3 {[%emt 0:00:17]} Bb7 {[%emt 0:00:10]} 5. Nc3 {[%emt 0:00:14]} d5 {[%emt 0:00:19]} 6. cxd5 {[%emt 0:00:48]} Nxd5 {[%emt 0:00:15]} 7. Qc2 {[%emt 0:00:17]} Nxc3 {[%emt 0:00:57]} 8. Qxc3 {[%emt 0:07:17]} Be7 {[%emt 0:03:21]} 9. Bf4 {[%emt 0:00:25]} Bd6 {[%emt 0:01:16] E12: Queen's Indian: Unusual White 4th moves, 4 a3, 4 Nc3 Bb7 5 a3 and 4 Nc3 Bb7} 10. Bg5 {[%emt 0:05:58]} (10. Bg3 O-O 11. e3 Nd7 12. Bd3 Rc8 13. Qc2 g6 14. Be4 Bxe4 15. Qxe4 Bxg3 16. hxg3 c5 17. g4 cxd4 18. exd4 {0-1 (46) Razin,V (2381)-Socko,B (2593) Katowice 2018}) 10... f6 {[%emt 0:04:02] LiveBook: 16 Games} 11. Bh4 {[%emt 0:03:30]} O-O {[%emt 0:04:12]} 12. e3 {[%emt 0:03:56]} Qe7 {[%emt 0:02:29]} 13. Bg3 {[%emt 0:02:42]} Nd7 {[%emt 0:03:40]} 14. Bc4 {[%emt 0:11:38]} Rac8 {[%emt 0:02:41]} 15. O-O {[%emt 0:03:14]} Bxg3 {[%emt 0:00:46]} 16. hxg3 {[%emt 0:00:35]} c5 {[%emt 0:00:47]} 17. Qb3 $146 {[%emt 0:01:39]} ({Predecessor:} 17. Rad1 Kh8 18. Qb3 Rfe8 {½-½ (44) Romm,M (2323)-Skarba,S (2344) ICCF email 2008}) 17... Rfe8 {[%emt 0:07:19]} 18. Rac1 {[%emt 0:06:57]} Nf8 {[%emt 0:10:24]} 19. Rfd1 {[%emt 0:03:45]} Bxf3 {[%emt 0:02:27]} 20. gxf3 {[%emt 0:00:05]} cxd4 {[%emt 0:00:16]} 21. exd4 {[%emt 0:03:16]} Rc7 {[%emt 0:06:43]} 22. Re1 $14 {[%emt 0:06:54]} Kh8 {[%emt 0:08:13]} 23. Rcd1 {[%emt 0:03:41]} Qd6 {[%emt 0:12:09]} 24. f4 {[%emt 0:07:29]} Ree7 {[%emt 0:04:12]} 25. Re3 {[%emt 0:03:48]} g6 {[%emt 0:04:28]} 26. Be2 {[%emt 0:01:50]} Kg7 {[%emt 0:00:43]} 27. Bf3 {[%emt 0:02:00]} Rc8 {[%emt 0:03:56]} 28. Kg2 {[%emt 0:01:47]} Rec7 {[%emt 0:00:23]} 29. d5 {[%emt 0:06:52]} e5 {[%emt 0:02:28]} 30. fxe5 {[%emt 0:00:11]} fxe5 {[%emt 0:00:00]} 31. Rde1 {[%emt 0:01:11]} Re8 {[%emt 0:00:19]} 32. Qb4 {[%emt 0:02:09]} Rc5 {[%emt 0:00:35]} 33. Qd2 {[%emt 0:02:06]} Nd7 {[%emt 0:00:34]} 34. b4 {[%emt 0:00:14]} Rc7 {[%emt 0:00:20]} 35. Qb2 {[%emt 0:01:47]} Kg8 {[%emt 0:03:30]} 36. Kh2 {[%emt 0:00:31]} h5 {[%emt 0:01:19]} 37. Bd1 {[%emt 0:00:53]} Rf8 {[%emt 0:01:10]} 38. f4 {[%emt 0:02:30]} Kh7 {[%emt 0:07:04]} 39. fxe5 {[%emt 0:02:35]} Qxd5 {[%emt 0:00:10]} 40. e6 {[%emt 0:00:00]} Nb8 {[%emt 0:00:00]} 41. Re5 {[%emt 0:14:44]} Qd6 {[%emt 0:08:10]} 42. e7 {[%emt 0:04:11]} Re8 {[%emt 0:00:33]} 43. Re6 {[%emt 0:00:44]} Qd3 {[%emt 0:00:59]} 44. Qf6 {[%emt 0:01:12]} Rcc8 45. Qf7+ {[%emt 0:01:09]} Kh6 {[%emt 0:03:25]} 46. Rxg6+ {[%emt 0:00:42]} Qxg6 {[%emt 0:00:28]} 47. Re6 {[%emt 0:00:04]} Qxe6 {[%emt 0:00:30]} 48. Qxe6+ {[%emt 0:00:05]} Kg5 {[%emt 0:00:16]} 49. Qe5+ {[%emt 0:00:16]} Kh6 {[%emt 0:00:09]} 50. Qf6+ {[%emt 0:00:51]} Kh7 {[%emt 0:00:06]} 51. Bxh5 {[%emt 0:00:54]} 1-0